fUSD/lending_fUSD_20240701
["ID","MTS","AMOUNT","RATE_DAILY","PERIOD"]
[330845891,1719862232977,-186.21,0.00020773,2]
[330845893,1719862232986,-186.21,0.00020779,2]
[330845895,1719862232995,-186.21,0.00020784,2]
[330845897,1719862233004,-186.21,0.0002079,2]
[330845899,1719862233014,-186.21,0.00020795,2]
[330845901,1719862233023,-186.21,0.00020801,2]
[330845903,1719862233035,-186.21,0.00020806,2]
[330845905,1719862233044,-186.21,0.00020812,2]
[330845907,1719862233053,-186.21,0.00020817,2]
[330845909,1719862233062,-186.21,0.00020822,2]
[330845911,1719862233072,-186.21,0.00020828,2]
[330845913,1719862233081,-186.21,0.00020833,2]
[330845915,1719862233090,-169.1,0.00020881,2]
[330845917,1719862233099,-170.86,0.0002089,2]
[330845919,1719862233109,-15389.3223,0.00020929,2]
[330845920,1719862233118,-4050.7381,0.00020929,2]
[330845921,1719862233127,-6463.0961,0.00020929,2]
[330845922,1719862233136,-182.23597,0.00020973,2]
[330845923,1719862233146,-323.37283968,0.00021,2]
[330845924,1719862233157,-1250.0,0.00021,2]
[330845925,1719862233170,-2000.0,0.00021,20]
[330845926,1719862233179,-172.41,0.00021222,2]
[330845927,1719862233189,-19458.2289,0.00021227,2]
[330845928,1719862233199,-1254.7553,0.00021227,2]
[330845929,1719862233209,-27772.4259,0.00021227,2]
[330845930,1719862233219,-4594.1367,0.00021243,2]
[330845931,1719862233228,-193.73395128,0.00021258,2]
[330845932,1719862233237,-4676.8092814,0.00021277,2]
[330845933,1719862233250,-182.23597,0.00021317,2]
[330845935,1719862233259,-122905.6922,0.00021327,2]
[330845937,1719862233268,-4676.80928133,0.00021358,2]
[330845939,1719862233278,-994.3177892,0.00021377,2]
[330845941,1719862233288,-285.75148297,0.00021398,2]
[330845943,1719862233298,-4676.80928133,0.00021439,2]
[330845945,1719862233308,-4676.80928133,0.0002152,2]
[330845947,1719862233317,-1000.0,0.00021565,2]
[330845949,1719862233327,-4676.80928133,0.00021601,2]
[330845951,1719862233338,-432.72,0.00021644,2]
[330845953,1719862233348,-570.96589,0.0002165,2]
[330845955,1719862233357,-182.23597,0.0002166,2]
[330845957,1719862233367,-150.45,0.00021671,2]
[330845959,1719862233377,-4676.80928133,0.00021682,2]
[330845961,1719862233386,-150.0,0.00021702,2]
[330845963,1719862233397,-500.0,0.00021719,2]
[330845965,1719862233406,-200.0,0.00021719,2]
[330845967,1719862233416,-4676.80928133,0.00021763,2]
[330845969,1719862233425,-181.04384057,0.00021776,2]
[330845971,1719862233434,-318.11062296,0.00021782,2]
[330845973,1719862233443,-150.0,0.00021789,2]
[330845975,1719862233452,-491.0,0.000218,4]
[330845977,1719862233462,-191.0,0.000218,4]
[330845979,1719862233472,-150.0,0.00021804,2]
[330845981,1719862233482,-171.62856957,0.00021807,2]
[330845983,1719862233491,-166.99151511,0.00021807,2]
[330845985,1719862233501,-1000.0,0.00021817,2]
[330845987,1719862233510,-2470.6745,0.00021817,2]
[330845989,1719862233519,-181.04384057,0.00021817,2]
[330845991,1719862233530,-14477.3482844,0.00021817,2]
[330845993,1719862233539,-336.7014995,0.00021817,2]
[330845995,1719862233548,-790.70050474,0.00021833,2]
[330845997,1719862233559,-491.76,0.00021843,2]
[330845999,1719862233568,-4676.80928133,0.00021844,2]
[330846001,1719862233578,-150.0,0.00021859,2]
[330846003,1719862233587,-790.70050474,0.00021865,2]
[330846005,1719862233597,-790.70050474,0.00021867,2]
[330846007,1719862233606,-7116.30454266,0.0002187,2]
[330846009,1719862233616,-3953.5025237,0.00021872,2]
[330846011,1719862233625,-581.33393112,0.00021873,2]
[330846013,1719862233637,-448.06132112,0.00021873,2]
[330846015,1719862233648,-526.5514901,0.00021875,2]
[330846017,1719862233657,-8759.1134395,0.00021875,2]
[330846019,1719862233666,-7152.6119752,0.00021877,2]
[330846021,1719862233675,-5546.1105109,0.00021877,2]
[330846023,1719862233684,-98573.0466194,0.0002188,2]
[330846025,1719862233693,-12978.87094675,0.00021882,2]
[330846027,1719862233706,-7375.86360603,0.00021882,2]
[330846029,1719862233717,-1101.00994531,0.00021882,2]
[330846031,1719862233728,-5287.45538079,0.00021882,2]
[330846034,1719862233740,-5181.93568372,0.00021882,2]
[330846036,1719862233749,-147.52363549,0.00021886,2]
[330846038,1719862233764,-62.20834035,0.00021886,2]
[330846040,1719862233773,-1817.87587215,0.00021886,2]
[330846162,1719862238549,-380.14740183,0.00013574,2]
[330846172,1719862240994,-286.81291746,0.00013574,2]
[330846173,1719862241006,-8.17708268,0.00021886,2]
[330846206,1719862506191,1418.71073027,4e-05,30]
[330846207,1719862511124,2075.25412606,0.00011199,2]
[330846216,1719862551578,1000.89,0.00011199,2]
[330846219,1719862616599,650.91919934,0.00011199,2]
[330846221,1719862779191,3106.52214219,0.00011199,2]
[330846222,1719862796080,227.0716558,0.00011199,2]
[330846316,1719862894152,1719.96025146,0.00011199,2]
[330846318,1719862946890,526.2798675,0.00011199,2]
[330846319,1719862974666,474.63082794,0.00011199,2]
[330846320,1719863031685,155.43149466,0.00011199,2]
[330846321,1719863032240,235.47260692,0.00011199,2]
[330846322,1719863041215,155.0,0.00011199,2]
[330846323,1719863044336,346.03148912,0.00011199,2]
[330846324,1719863052243,451.20366451,0.00011199,2]
[330846325,1719863059965,157.52085627,0.00011199,2]
[330846326,1719863064309,684.75373736,0.00011199,2]
[330846327,1719863070188,434.93719891,0.00011199,2]
[330846328,1719863089931,202.21267486,0.00011199,2]
[330846329,1719863105593,265.83049183,0.00011199,2]
[330846330,1719863132086,1250.93121007,0.00011199,2]
[330846331,1719863274967,476.10316361,0.00011199,2]
[330846332,1719863297081,227.0716558,0.00011199,2]
[330846333,1719863338222,18298.96275783,0.00011199,2]
[330846334,1719863391137,313.84024762,0.00011199,2]
[330846335,1719863416085,155.21845942,0.00011199,2]
[330846362,1719863432093,-163.58641568,0.00012273,2]
[330846363,1719863432102,-155.0,0.00012302,2]
[330846364,1719863432113,-155.0,0.00012314,2]
[330846365,1719863432124,-378.75665363,0.00012314,2]
[330846366,1719863432135,-155.0,0.00012314,2]
[330846367,1719863432145,-155.0,0.00012314,2]
[330846368,1719863432155,-206.12734629,0.00012314,2]
[330846369,1719863432165,-438.1115069,0.00013128,2]
[330846370,1719863432174,-526.78,0.00013276,2]
[330846371,1719863432184,-529.80766427,0.00013472,2]
[330846372,1719863432193,-600.0,0.00013501,2]
[330846373,1719863432203,-1340.4581047,0.00013516,2]
[330846374,1719863432213,-155.0,0.00013516,2]
[330846375,1719863432223,-150.0,0.00013534,2]
[330846376,1719863432233,-227.0716558,0.00013543,2]
[330846377,1719863432242,-150.99,0.00013574,2]
[330846378,1719863432252,-1731.84231927,0.00013574,2]
[330846379,1719863432263,-283.57813973,0.00013574,2]
[330846380,1719863432273,-254.00686165,0.00013574,2]
[330846381,1719863432282,-829.48640784,0.00013584,2]
[330846382,1719863432307,-3176.504,0.00013584,2]
[330846419,1719863437939,-491.29,0.00013584,2]
[330846422,1719863438067,-59279.71959216,0.00013584,2]
[330846423,1719863438078,-494.66,0.00013699,2]
[330846424,1719863438099,-499.99,0.00013721,2]
[330846425,1719863438111,-250.0,0.00013736,2]
[330846426,1719863438122,-23900.0,0.00013797,2]
[330846427,1719863438135,-8202.05,0.00013797,2]
[330846428,1719863438146,-10000.0,0.00013823,2]
[330846429,1719863438157,-2409.32012221,0.0001387,2]
[330846430,1719863438169,-981.87,0.0001387,2]
[330846431,1719863438179,-193.41797284,0.000139,2]
[330846432,1719863438190,-400.0,0.000139,5]
[330846433,1719863438201,-318.11062295,0.000139,2]
[330846434,1719863438216,-4676.80928133,0.00013942,2]
[330846435,1719863438226,-491.29,0.0001399,3]
[330846436,1719863438237,-189.98417699,0.0001399,2]
[330846437,1719863438248,-207.07337488,0.00013999,2]
[330846438,1719863438259,-221.49252962,0.00013999,2]
[330846439,1719863438270,-150.06146514,0.00014,2]
[330846440,1719863438281,-845893.39446267,0.00014,2]
[330846441,1719863438293,-545.37,0.00014142,2]
[330846442,1719863438303,-169.96,0.00014207,2]
[330846443,1719863438315,-250.0,0.00014221,2]
[330846444,1719863438327,-4676.80928133,0.00014838,2]
[330846445,1719863438338,-900.0,0.000149,5]
[330846446,1719863438348,-166.66,0.00014904,3]
[330846447,1719863438359,-300.0,0.00014999,2]
[330846448,1719863438371,-300.0,0.00014999,2]
[330846449,1719863438382,-300.0,0.00014999,2]
[330846450,1719863438394,-300.0,0.00014999,2]
[330846451,1719863438405,-300.0,0.00014999,2]
[330846452,1719863438416,-300.0,0.00014999,2]
[330846453,1719863438427,-300.0,0.00014999,2]
[330846454,1719863438438,-300.0,0.00014999,2]
[330846455,1719863438449,-300.0,0.00014999,2]
[330846456,1719863438459,-308304.18395428,0.00015,2]
[330846457,1719863438471,-5000.0,0.00015,2]
[330846458,1719863438481,-3968.30247288,0.00015,2]
[330846459,1719863438491,-24636.66392128,0.00015,2]
[330846460,1719863438502,-600.0,0.00015189,2]
[330846461,1719863438513,-4676.80928133,0.00015734,2]
[330846462,1719863438523,-246.52,0.00015831,2]
[330846463,1719863438535,-3139.0,0.000164,5]
[330846464,1719863438550,-545.37,0.00016406,2]
[330846465,1719863438561,-4676.80928133,0.0001663,2]
[330846466,1719863438571,-600.0,0.00016876,2]
[330846467,1719863438582,-4676.80928133,0.00017526,2]
[330846468,1719863438595,-240.38467831,0.00017608,2]
[330846469,1719863438610,-11661.38,0.00017728,2]
[330846470,1719863438620,-3207.71810411,0.0001799,2]
[330846471,1719863438632,-4676.80928133,0.00018423,2]
[330846472,1719863438643,-600.0,0.00018564,2]
[330846473,1719863438654,-400.0,0.00018624,2]
[330846474,1719863438664,-164.88,0.00018628,2]
[330846475,1719863438675,-545.37,0.00018669,2]
[330846476,1719863438686,-158.09,0.000189,2]
[330846477,1719863438697,-31801.65800329,0.00019,2]
[330846478,1719863438708,-324.88502877,0.00019,2]
[330846479,1719863438720,-324.88502877,0.00019,2]
[330846480,1719863438730,-324.88502877,0.00019,2]
[330846481,1719863438740,-324.88502877,0.00019,2]
[330846482,1719863438751,-324.88502877,0.00019,2]
[330846483,1719863438762,-324.88502877,0.00019,2]
[330846484,1719863438772,-324.88502877,0.00019,2]
[330846485,1719863438783,-324.88502877,0.00019,2]
[330846486,1719863438794,-324.88502877,0.00019,2]
[330846487,1719863438805,-324.88502877,0.00019,2]
[330846488,1719863438815,-324.88502877,0.00019,2]
[330846489,1719863438826,-324.88502877,0.00019,2]
[330846490,1719863438836,-324.88502877,0.00019,2]
[330846491,1719863438847,-324.88502877,0.00019,2]
[330846492,1719863438857,-324.88502877,0.00019,2]
[330846493,1719863438867,-324.88502877,0.00019,2]
[330846494,1719863438877,-324.88502877,0.00019,2]
[330846495,1719863438888,-324.88502877,0.00019,2]
[330846496,1719863438899,-324.88502877,0.00019,2]
[330846497,1719863438909,-324.88502877,0.00019,2]
[330846498,1719863438921,-155.0,0.00019177,2]
[330846499,1719863438932,-250.0,0.00019178,2]
[330846500,1719863438943,-270.0,0.00019178,2]
[330846501,1719863438954,-494.66,0.00019178,2]
[330846502,1719863438967,-4676.80928133,0.00019319,2]
[330846503,1719863438977,-625.64470959,0.0001935,2]
[330846504,1719863438989,-2500.0,0.000195,2]
[330846505,1719863439000,-150.90846153,0.00019539,2]
[330846506,1719863439012,-150.0,0.00019578,4]
[330846507,1719863439024,-150.0,0.00019759,4]
[330846508,1719863439035,-2945.0,0.000198,3]
[330846509,1719863439047,-150.0,0.00019941,4]
[330846510,1719863439058,-155.0,0.00019997,2]
[330846511,1719863439069,-1605.29438725,0.0002,7]
[330846512,1719863439081,-448.06132112,0.0002,2]
[330846513,1719863439092,-1435.82802612,0.0002,2]
[330846514,1719863439103,-900.0,0.0002,2]
[330846515,1719863439114,-3954.11623315,0.0002,2]
[330846516,1719863439129,-7187.71828881,0.0002,2]
[330846517,1719863439141,-155.25696509,0.0002,2]
[330846518,1719863439151,-310.08129584,0.0002,3]
[330846519,1719863439162,-256.70238179,0.0002,2]
[330846520,1719863439174,-150.0,0.0002,2]
[330846521,1719863439185,-247.94,0.00020017,2]
[330846522,1719863439195,-979.51,0.00020017,30]
[330846523,1719863439207,-162.42,0.00020017,2]
[330846524,1719863439220,-247.94,0.00020022,2]
[330846525,1719863439230,-247.94,0.00020027,2]
[330846526,1719863439241,-247.94,0.00020032,2]
[330846527,1719863439251,-247.94,0.00020038,2]
[330846528,1719863439263,-247.94,0.00020043,2]
[330846529,1719863439274,-247.94,0.00020048,2]
[330846530,1719863439285,-247.94,0.00020053,2]
[330846531,1719863439299,-247.94,0.00020059,2]
[330846532,1719863439311,-247.94,0.00020064,2]
[330846533,1719863439323,-247.94,0.00020069,2]
[330846534,1719863439335,-247.94,0.00020074,2]
[330846535,1719863439346,-247.94,0.0002008,2]
[330846536,1719863439357,-247.94,0.00020085,2]
[330846537,1719863439368,-247.94,0.0002009,2]
[330846538,1719863439380,-247.94,0.00020095,2]
[330846539,1719863439392,-247.94,0.00020101,2]
[330846540,1719863439403,-247.94,0.00020106,2]
[330846541,1719863439412,-247.94,0.00020111,2]
[330846542,1719863439423,-247.94,0.00020116,2]
[330846543,1719863439433,-150.0,0.00020122,4]
[330846544,1719863439581,-151.0,0.00020187,2]
[330846545,1719863439593,-150.90846153,0.00020188,2]
[330846546,1719863439604,-4676.80928133,0.00020215,2]
[330846547,1719863439615,-600.0,0.00020251,2]
[330846548,1719863439627,-150.0,0.00020303,4]
[330846549,1719863439637,-150.90846153,0.00020399,2]
[330846550,1719863439648,-165.46569143,0.00020404,2]
[330846551,1719863439658,-150.90846153,0.00020461,2]
[330846552,1719863439668,-151.0,0.00020475,2]
[330846553,1719863439678,-150.90846153,0.00020481,2]
[330846554,1719863439688,-150.0,0.00020484,4]
[330846555,1719863439698,-164.88,0.0002049,2]
[330846556,1719863439708,-176.320034,0.00020629,2]
[330846557,1719863439721,-1443.008811,0.00020629,2]
[330846558,1719863439731,-4497.878904,0.00020629,2]
[330846559,1719863439742,-4104.923464,0.00020629,2]
[330846560,1719863439752,-175.127575,0.00020629,2]
[330846561,1719863439762,-5772.035243,0.00020629,2]
[330846562,1719863439772,-176.598289,0.00020629,2]
[330846563,1719863439782,-2998.585936,0.00020629,2]
[330846564,1719863439792,-2736.615642,0.00020629,2]
[330846565,1719863439803,-150.0,0.00020666,4]
[330846566,1719863439813,-151.0,0.00020764,2]
[330846567,1719863439822,-151.82,0.00020795,2]
[330846568,1719863439833,-150.0,0.00020795,2]
[330846569,1719863439843,-150.0,0.00020795,2]
[330846570,1719863439853,-150.0,0.00020795,2]
[330846571,1719863439862,-300.0,0.00020799,2]
[330846572,1719863439873,-300.0,0.00020799,2]
[330846573,1719863439883,-206368.12542,0.000208,2]
[330846575,1719863439894,-150.90846153,0.0002083,2]
[330846576,1719863439904,-150.0,0.00020847,4]
[330846577,1719863439915,-9101.8852049,0.0002087,2]
[330846578,1719863439925,-150.5,0.0002087,30]
[330846579,1719863439934,-2714.0,0.0002087,30]
[330846580,1719863439944,-150.90846153,0.00020879,2]
[330846581,1719863439954,-150.5,0.0002088,30]
[330846582,1719863439964,-2714.0,0.0002088,30]
[330846583,1719863439974,-150.5,0.0002088,30]
[330846584,1719863439984,-151.0,0.00020887,30]
[330846585,1719863439993,-1443.008811,0.00020887,2]
[330846586,1719863440003,-4497.878904,0.00020887,2]
[330846587,1719863440012,-4104.923464,0.00020887,2]
[330846588,1719863440022,-5772.035243,0.00020887,2]
[330846589,1719863440032,-2998.585936,0.00020887,2]
[330846590,1719863440042,-2736.615642,0.00020887,2]
[330846591,1719863440052,-150.5,0.0002089,30]
[330846592,1719863440062,-2714.0,0.0002089,30]
[330846593,1719863440072,-150.5,0.0002089,30]
[330846594,1719863440082,-300.0,0.00020899,2]
[330846595,1719863440102,-300.0,0.00020899,2]
[330846596,1719863440113,-300.0,0.00020899,2]
[330846597,1719863440125,-300.0,0.00020899,2]
[330846598,1719863440135,-151.0,0.000209,2]
[330846599,1719863440146,-151.0,0.000209,2]
[330846600,1719863440156,-299.330384,0.000209,2]
[330846601,1719863440167,-220.156169,0.000209,2]
[330846602,1719863440178,-299.330384,0.000209,2]
[330846603,1719863440188,-220.156169,0.000209,2]
[330846604,1719863440199,-151.0,0.000209,2]
[330846605,1719863440209,-151.0,0.000209,2]
[330846606,1719863440222,-151.0,0.000209,2]
[330846607,1719863440232,-151.595079,0.000209,2]
[330846608,1719863440242,-204.158447,0.000209,2]
[330846609,1719863440255,-151.0,0.000209,2]
[330846610,1719863440266,-151.0,0.000209,2]
[330846611,1719863440276,-151.0,0.000209,2]
[330846612,1719863440286,-151.0,0.000209,2]
[330846613,1719863440297,-419.313129,0.000209,2]
[330846614,1719863440307,-419.313129,0.000209,2]
[330846615,1719863440318,-151.0,0.000209,2]
[330846616,1719863440328,-151.0,0.000209,2]
[330846617,1719863440338,-151.0,0.000209,2]
[330846618,1719863440348,-151.0,0.000209,2]
[330846619,1719863440358,-235.889707,0.000209,2]
[330846620,1719863440369,-151.0,0.000209,2]
[330846621,1719863440378,-235.889707,0.000209,2]
[330846622,1719863440388,-151.0,0.000209,2]
[330846623,1719863440398,-179.515258,0.000209,2]
[330846624,1719863440407,-605.839599,0.000209,2]
[330846625,1719863440417,-605.839599,0.000209,2]
[330846626,1719863440427,-151.0,0.000209,2]
[330846627,1719863440436,-151.0,0.000209,2]
[330846628,1719863440446,-151.0,0.000209,2]
[330846629,1719863440456,-780.514645,0.000209,2]
[330846630,1719863440467,-780.514645,0.000209,2]
[330846631,1719863440477,-390.148636,0.000209,2]
[330846632,1719863440486,-390.148636,0.000209,2]
[330846633,1719863440496,-151.0,0.000209,2]
[330846634,1719863440506,-151.0,0.000209,2]
[330846635,1719863440516,-151.0,0.000209,2]
[330846636,1719863440526,-151.0,0.000209,2]
[330846637,1719863440536,-151.0,0.000209,2]
[330846638,1719863440549,-1400.0,0.000209,7]
[330846639,1719863440559,-545.37,0.00020933,2]
[330846640,1719863440568,-400.0,0.00020952,2]
[330846641,1719863440578,-300.0,0.00020999,2]
[330846642,1719863440590,-300.0,0.00020999,2]
[330846643,1719863440600,-300.0,0.00020999,2]
[330846644,1719863440610,-300.0,0.00020999,2]
[330846645,1719863440619,-300.0,0.00020999,2]
[330846646,1719863440632,-300.0,0.00020999,2]
[330846647,1719863440642,-45024.32253848,0.00021,3]
[330846648,1719863440652,-225.19167095,0.00021,2]
[330846649,1719863440661,-1007.30481552,0.00021,2]
[330846650,1719863440671,-504.38576692,0.00021,2]
[330846651,1719863440680,-1250.0,0.00021,2]
[330846652,1719863440690,-188.85,0.00021017,2]
[330846653,1719863440700,-300.0,0.00021023,2]
[330846654,1719863440709,-300.0,0.00021023,2]
[330846655,1719863440725,-1820.0,0.00021024,2]
[330846656,1719863440735,-358.0,0.00021024,2]
[330846657,1719863440745,-618.0,0.00021024,2]
[330846658,1719863440755,-166.0,0.00021024,2]
[330846659,1719863440765,-812.0,0.00021024,2]
[330846660,1719863440774,-448.0,0.00021024,2]
[330846661,1719863440784,-442.0,0.00021024,2]
[330846662,1719863440793,-1293.0,0.00021024,2]
[330846663,1719863440803,-2408.0,0.00021024,2]
[330846664,1719863440812,-175.248,0.00021024,2]
[330846665,1719863440822,-5172.0,0.00021024,2]
[330846666,1719863440832,-291.0,0.00021024,2]
[330846667,1719863440842,-33254.882,0.00021024,2]
[330846668,1719863440852,-150.0,0.00021028,4]
[330846669,1719863440862,-151.0,0.00021052,2]
[330846670,1719863440871,-4676.80928133,0.00021111,2]
[330846671,1719863440881,-621.0,0.00021115,30]
[330846672,1719863440890,-621.0,0.00021125,30]
[330846673,1719863440900,-621.0,0.00021135,30]
[330846674,1719863440910,-1443.008811,0.00021145,2]
[330846675,1719863440919,-4497.878904,0.00021145,2]
[330846676,1719863440929,-4104.923464,0.00021145,2]
[330846677,1719863440939,-5772.035243,0.00021145,2]
[330846678,1719863440948,-2998.585936,0.00021145,2]
[330846679,1719863440958,-2736.615642,0.00021145,2]
[330846680,1719863440968,-175.127575,0.00021145,2]
[330846681,1719863440978,-176.598289,0.00021145,2]
[330846682,1719863440988,-1900.0,0.000212,7]
[330846683,1719863440997,-150.0,0.0002121,4]
[330846684,1719863441007,-150.90846153,0.00021247,2]
[330846685,1719863441016,-2400.0,0.000213,7]
[330846686,1719863441026,-151.0,0.00021313,7]
[330846687,1719863441035,-379.49243244,0.00021326,5]
[330846688,1719863441044,-151.0,0.0002134,2]
[330846689,1719863441054,-150.0,0.00021342,2]
[330846690,1719863441063,-150.0,0.00021342,2]
[330846691,1719863441073,-150.0,0.00021342,2]
[330846692,1719863441083,-150.0,0.00021342,2]
[330846693,1719863441092,-150.0,0.00021342,2]
[330846694,1719863441102,-1055.03,0.00021342,2]
[330846695,1719863441112,-343.9,0.00021342,2]
[330846696,1719863441121,-150.0,0.00021342,2]
[330846697,1719863441130,-150.0,0.00021342,2]
[330846698,1719863441140,-150.0,0.00021342,2]
[330846699,1719863441150,-171.93,0.00021386,2]
[330846700,1719863441160,-150.0,0.00021391,4]
[330846701,1719863441169,-400.0,0.000214,7]
[330846702,1719863441178,-1443.008811,0.00021403,2]
[330846703,1719863441188,-4497.878904,0.00021403,2]
[330846704,1719863441198,-4104.923464,0.00021403,2]
[330846705,1719863441208,-5772.035243,0.00021403,2]
[330846706,1719863441218,-2998.585936,0.00021403,2]
[330846707,1719863441227,-2736.615642,0.00021403,2]
[330846708,1719863441237,-150.90846153,0.00021413,2]
[330846709,1719863441247,-400.0,0.000215,7]
[330846710,1719863441257,-384.77028012,0.00021516,2]
[330846711,1719863441266,-150.0,0.00021572,4]
[330846712,1719863441276,-400.0,0.000216,7]
[330846713,1719863441285,-150.0,0.00021624,2]
[330846714,1719863441295,-151.0,0.00021629,2]
[330846715,1719863441303,-150.0,0.0002163,2]
[330846716,1719863441313,-150.0,0.00021633,2]
[330846717,1719863441322,-174.54,0.00021644,2]
[330846718,1719863441332,-484.43,0.00021644,2]
[330846719,1719863441341,-150.0,0.00021644,2]
[330846720,1719863441351,-150.0,0.00021646,2]
[330846721,1719863441360,-150.0,0.00021649,2]
[330846722,1719863441370,-150.0,0.00021651,2]
[330846723,1719863441379,-1443.008811,0.0002166,2]
[330846724,1719863441389,-4497.878904,0.0002166,2]
[330846725,1719863441398,-4104.923464,0.0002166,2]
[330846726,1719863441408,-5772.035243,0.0002166,2]
[330846727,1719863441418,-2998.585936,0.0002166,2]
[330846728,1719863441427,-2736.615642,0.0002166,2]
[330846729,1719863441437,-175.127575,0.0002166,2]
[330846730,1719863441446,-176.598289,0.0002166,2]
[330846731,1719863441456,-150.0,0.00021663,2]
[330846732,1719863441467,-150.0,0.00021664,2]
[330846733,1719863441476,-150.0,0.00021664,2]
[330846734,1719863441486,-12469.00144837,0.0002167,2]
[330846735,1719863441495,-150.0,0.0002167,2]
[330846736,1719863441504,-475.80491,0.0002167,2]
[330846737,1719863441513,-150.0,0.00021674,2]
[330846738,1719863441522,-150.0,0.00021676,2]
[330846739,1719863441533,-150.0,0.00021681,2]
[330846740,1719863441546,-150.90846153,0.00021688,2]
[330846741,1719863441555,-150.0,0.00021693,2]
[330846742,1719863441564,-400.0,0.000217,7]
[330846743,1719863441573,-150.0,0.00021708,2]
[330846744,1719863441583,-150.0,0.00021709,2]
[330846745,1719863441593,-200.0,0.00021713,2]
[330846746,1719863441602,-150.0,0.00021729,2]
[330846747,1719863441611,-150.0,0.00021733,2]
[330846748,1719863441622,-150.0,0.00021736,2]
[330846749,1719863441632,-1500.0,0.00021736,2]
[330846750,1719863441641,-150.0,0.00021739,2]
[330846751,1719863441650,-150.0,0.0002174,2]
[330846752,1719863441660,-150.0,0.00021744,2]
[330846753,1719863441669,-151.0,0.00021748,4]
[330846754,1719863441678,-150.0,0.00021753,2]
[330846755,1719863441687,-151.61099688,0.00021753,4]
[330846756,1719863441696,-150.0,0.00021762,2]
[330846757,1719863441706,-150.0,0.00021763,2]
[330846758,1719863441716,-150.0,0.00021767,2]
[330846759,1719863441726,-150.0,0.00021768,2]
[330846760,1719863441736,-171.62856956,0.00021775,2]
[330846761,1719863441745,-166.44117945,0.00021775,2]
[330846762,1719863441755,-225.05878321,0.00021775,2]
[330846763,1719863441764,-9651.56552292,0.00021777,2]
[330846764,1719863441774,-3338.79291378,0.00021777,2]
[330846765,1719863441784,-1234.57216481,0.00021777,2]
[330846766,1719863441794,-367.86522223,0.0002178,2]
[330846767,1719863441804,-605.0,0.00021782,2]
[330846768,1719863441815,-1500.0,0.00021784,2]
[330846769,1719863441824,-150.0,0.00021788,2]
[330846770,1719863441834,-1056.0,0.000218,7]
[330846771,1719863441844,-491.0,0.000218,4]
[330846772,1719863441854,-326.0,0.000218,4]
[330846773,1719863441865,-150.0,0.00021802,2]
[330846774,1719863441874,-178.59443935,0.00021807,2]
[330846775,1719863441883,-150.0,0.00021807,2]
[330846776,1719863441893,-150.0,0.00021807,2]
[330846777,1719863441902,-150.0,0.00021807,2]
[330846778,1719863441912,-150.0,0.00021809,2]
[330846779,1719863441921,-150.0,0.00021811,2]
[330846780,1719863441931,-150.0,0.00021813,2]
[330846781,1719863441941,-150.0,0.00021813,2]
[330846782,1719863441950,-150.0,0.00021813,2]
[330846783,1719863441959,-300.0,0.00021816,2]
[330846784,1719863441972,-300.0,0.00021816,2]
[330846785,1719863441981,-1000.0,0.00021817,2]
[330846786,1719863441991,-25000.0,0.00021817,2]
[330846787,1719863442000,-2537.59950707,0.00021817,2]
[330846788,1719863442010,-151.0,0.00021817,2]
[330846789,1719863442020,-151.0,0.00021817,2]
[330846790,1719863442029,-151.0,0.00021817,2]